[Event "EYCC Girls U10 2021"]
[Site "Tornelo"]
[Date "2021.10.15"]
[Round "4.5"]
[White "Bashirli, Saadat"]
[Black "Gratskova, Anastasia"]
[Result "1-0"]
[ECO "B52"]
[WhiteElo "1284"]
[BlackElo "1313"]
[Annotator "NA"]
[PlyCount "125"]
[EventDate "2021.10.15"]
[EventType "swiss"]
[EventCountry "NET"]
[SourceTitle "playchess.com"]
[Source "ChessBase"]
[SourceQuality "1"]
[TimeControl "5400+30"]

1. e4 {[%emt 0:00:30]} c5 {[%emt 0:00:37]} 2. Nf3 {[%emt 0:00:06]} d6 {[%emt 0:00:04]} 3. Bb5+ {[%emt 0:00:05]} Bd7 {[%emt 0:00:06]} 4. Bxd7+ {[%emt 0:00:05]} Qxd7 {[%emt 0:00:04]} 5. c4 {[%emt 0:00:03]} e5 {[%emt 0:00:14]} 6. Nc3 {[%emt 0:00:07]} Nf6 {[%emt 0:00:21]} 7. d3 {[%emt 0:00:06]} g6 {[%emt 0:00:08]} 8. Bg5 {[%emt 0:00:05]} Bg7 {[%emt 0:00:06]} 9. O-O {[%emt 0:00:03]} h6 {[%emt 0:00:29]} 10. Bxf6 {[%emt 0:00:09]} Bxf6 {[%emt 0:00:04]} 11. Qd2 {[%emt 0:00:05]} Bg7 {[%emt 0:00:10]} 12. a3 {[%emt 0:00:07]} O-O {[%emt 0:00:15]} 13. b4 {[%emt 0:00:07]} b6 {[%emt 0:00:34]} 14. b5 {[%emt 0:00:19]} f5 {[%emt 0:01:19]} 15. Nd5 {[%emt 0:00:59]} Qd8 {[%emt 0:03:48]} 16. a4 {[%emt 0:00:56]} Nd7 {[%emt 0:02:49]} 17. a5 {[%emt 0:01:46]} Rf7 {[%emt 0:08:08]} 18. axb6 {[%emt 0:02:23]} axb6 {[%emt 0:00:32]} 19. Rxa8 {[%emt 0:01:31]} Qxa8 {[%emt 0:00:12]} 20. Qc3 {[%emt 0:00:21]} Qb8 {[%emt 0:07:02]} 21. Ra1 {[%emt 0:03:10]} Nf6 {[%emt 0:02:11]} 22. Nxf6+ {[%emt 0:02:06]} Bxf6 {[%emt 0:00:20]} 23. Qa3 {[%emt 0:00:37]} fxe4 {[%emt 0:12:02]} 24. dxe4 {[%emt 0:00:14]} Kg7 {[%emt 0:04:12]} 25. Qa8 {[%emt 0:01:34]} Qc7 {[%emt 0:01:11]} 26. Qd5 {[%emt 0:00:14]} Qd7 {[%emt 0:07:08]} 27. h3 {[%emt 0:02:59]} Bd8 {[%emt 0:03:13]} 28. Rd1 {[%emt 0:00:41]} Rf6 {[%emt 0:04:37]} 29. Nxe5 {[%emt 0:01:37]} Qe8 {[%emt 0:00:43]} 30. Ng4 {[%emt 0:01:55]} Re6 {[%emt 0:00:40]} 31. f3 {[%emt 0:01:03]} h5 {[%emt 0:01:36]} 32. Nf2 {[%emt 0:00:54]} Qf7 {[%emt 0:03:47]} 33. Qc6 {[%emt 0:03:44]} Qe7 {[%emt 0:02:46]} 34. Ra1 {[%emt 0:01:56]} Rf6 {[%emt 0:02:05]} 35. Qa8 {[%emt 0:01:53]} Rf7 {[%emt 0:00:29]} 36. Qd5 {[%emt 0:03:12]} Rf6 {[%emt 0:01:04]} 37. Nd1 {[%emt 0:00:17]} Qc7 {[%emt 0:03:53]} 38. Ne3 {[%emt 0:00:56]} Rf7 {[%emt 0:00:48]} 39. Rd1 {[%emt 0:00:45]} Be7 {[%emt 0:00:23]} 40. Qd3 {[%emt 0:00:36]} Qa7 {[%emt 0:00:54]} 41. Nd5 {[%emt 0:00:21]} Bd8 {[%emt 0:00:47]} 42. Qe3 {[%emt 0:01:47]} Qb8 {[%emt 0:01:48]} 43. Kh1 {[%emt 0:01:20]} Bf6 {[%emt 0:00:53]} 44. Nxf6 {[%emt 0:00:31]} Rxf6 {[%emt 0:00:10]} 45. Qg5 {[%emt 0:00:37]} Qc7 {[%emt 0:00:49]} 46. Qd5 {[%emt 0:00:20]} Kh7 {[%emt 0:02:12]} 47. Ra1 {[%emt 0:00:23]} Rf8 {[%emt 0:01:26]} 48. Qe6 {[%emt 0:00:26]} Qg7 {[%emt 0:00:37]} 49. Rd1 {[%emt 0:00:26]} Rf6 {[%emt 0:00:08]} 50. Qe8 {[%emt 0:00:26]} Qc7 {[%emt 0:00:27]} 51. Re1 {[%emt 0:01:04]} Rf7 {[%emt 0:00:28]} 52. Qe6 {[%emt 0:00:39]} Re7 {[%emt 0:00:29]} 53. Qd5 {[%emt 0:00:12]} Kg7 {[%emt 0:01:30]} 54. Rd1 {[%emt 0:00:10]} Rd7 {[%emt 0:01:14]} 55. e5 {[%emt 0:00:13]} Rd8 {[%emt 0:01:01]} 56. exd6 {[%emt 0:00:15]} Qd7 {[%emt 0:00:15]} 57. Qc6 {[%emt 0:00:13]} Qa7 {[%emt 0:00:07]} 58. d7 {[%emt 0:00:36]} Qa4 {[%emt 0:00:25]} 59. Qd6 {[%emt 0:00:22]} Kh6 {[%emt 0:00:28]} 60. Qd3 {[%emt 0:01:17]} Qa8 {[%emt 0:00:35]} 61. Re1 {[%emt 0:02:21]} Qa7 {[%emt 0:00:29]} 62. Qe3+ {[%emt 0:00:08]} Kg7 {[%emt 0:00:14]} 63. Qe7+ {[%emt 0:00:05]} 1-0

[Event "EYCC Girls U10 2021"]
[Site "Tornelo"]
[Date "2021.10.15"]
[Round "4.6"]
[White "Semenova, Vasilisa"]
[Black "Kutateladze, Anastasia"]
[Result "1-0"]
[ECO "E34"]
[WhiteElo "1305"]
[BlackElo "1137"]
[Annotator "NA"]
[PlyCount "83"]
[EventDate "2021.10.15"]
[EventType "swiss"]
[EventCountry "NET"]
[SourceTitle "playchess.com"]
[Source "ChessBase"]
[SourceQuality "1"]
[TimeControl "5400+30"]

1. d4 {[%emt 0:00:30]} Nf6 {[%emt 0:00:46]} 2. c4 {[%emt 0:00:05]} e6 {[%emt 0:00:06]} 3. Nc3 {[%emt 0:00:05]} Bb4 {[%emt 0:00:07]} 4. Qc2 {[%emt 0:00:05]} d5 {[%emt 0:00:29]} 5. Bg5 {[%emt 0:00:46]} c5 {[%emt 0:04:54]} 6. e3 {[%emt 0:01:18]} h6 {[%emt 0:02:50]} 7. Bxf6 {[%emt 0:00:15]} Qxf6 {[%emt 0:01:34]} 8. a3 {[%emt 0:01:42]} Bxc3+ {[%emt 0:02:37]} 9. bxc3 {[%emt 0:00:09]} Nd7 {[%emt 0:02:26]} 10. Nf3 {[%emt 0:00:16]} O-O {[%emt 0:01:06]} 11. Be2 {[%emt 0:00:58]} Kh8 {[%emt 0:00:30]} 12. O-O {[%emt 0:00:35]} g5 {[%emt 0:00:37]} 13. Nd2 {[%emt 0:00:42]} Qg7 {[%emt 0:02:36]} 14. cxd5 {[%emt 0:00:50]} exd5 {[%emt 0:02:09]} 15. Bf3 {[%emt 0:00:10]} cxd4 {[%emt 0:00:20]} 16. cxd4 {[%emt 0:00:16]} Nb6 {[%emt 0:00:21]} 17. a4 {[%emt 0:04:47]} g4 {[%emt 0:00:35]} 18. Be2 {[%emt 0:00:20]} f5 {[%emt 0:01:34]} 19. a5 {[%emt 0:00:12]} Nd7 {[%emt 0:00:37]} 20. f3 {[%emt 0:00:41]} g3 {[%emt 0:04:15]} 21. h3 {[%emt 0:01:50]} f4 {[%emt 0:02:40]} 22. Qd3 {[%emt 0:00:31]} Nf6 {[%emt 0:05:01]} 23. e4 {[%emt 0:00:31]} dxe4 {[%emt 0:03:20]} 24. fxe4 {[%emt 0:00:28]} Nh7 {[%emt 0:01:13]} 25. Nf3 {[%emt 0:01:45]} a6 {[%emt 0:03:41]} 26. d5 {[%emt 0:01:53]} Bd7 {[%emt 0:02:32]} 27. e5 {[%emt 0:01:13]} Bb5 {[%emt 0:01:25]} 28. Qe4 {[%emt 0:00:17]} Bxe2 {[%emt 0:01:00]} 29. Qxe2 {[%emt 0:00:11]} Ng5 {[%emt 0:00:45]} 30. Nxg5 {[%emt 0:00:13]} Qxg5 {[%emt 0:00:10]} 31. Rae1 {[%emt 0:00:58]} Qe7 {[%emt 0:01:19]} 32. e6 {[%emt 0:00:13]} Qc5+ {[%emt 0:03:05]} 33. Kh1 {[%emt 0:00:07]} Qxd5 {[%emt 0:00:58]} 34. e7 {[%emt 0:00:24]} Rfe8 {[%emt 0:00:30]} 35. Rxf4 {[%emt 0:00:11]} Rac8 {[%emt 0:08:44]} 36. Qb2+ {[%emt 0:02:06]} Kh7 {[%emt 0:01:34]} 37. Qb1+ {[%emt 0:00:09]} Kg7 {[%emt 0:01:21]} 38. Rg4+ {[%emt 0:00:12]} Qg5 {[%emt 0:03:28]} 39. Rxg5+ {[%emt 0:00:10]} hxg5 {[%emt 0:00:11]} 40. Qf5 {[%emt 0:00:06]} Rxe7 {[%emt 0:01:32]} 41. Rxe7+ {[%emt 0:00:08]} Kh8 {[%emt 0:00:08]} 42. Qh7# {[%emt 0:00:03]} 1-0

[Event "EYCC Girls U10 2021"]
[Site "Tornelo"]
[Date "2021.10.15"]
[Round "4.8"]
[White "Ashotia, Barbare"]
[Black "Sunea, Sara Maria"]
[Result "1/2-1/2"]
[ECO "B22"]
[WhiteElo "1128"]
[BlackElo "1342"]
[Annotator "NA"]
[PlyCount "111"]
[EventDate "2021.10.15"]
[EventType "swiss"]
[EventCountry "NET"]
[SourceTitle "playchess.com"]
[Source "ChessBase"]
[SourceQuality "1"]
[TimeControl "5400+30"]

1. e4 {[%emt 0:00:30]} c5 {[%emt 0:00:41]} 2. c3 {[%emt 0:00:03]} d5 {[%emt 0:00:28]} 3. exd5 {[%emt 0:00:02]} Qxd5 {[%emt 0:00:17]} 4. d4 {[%emt 0:00:03]} cxd4 {[%emt 0:00:32]} 5. cxd4 {[%emt 0:04:56]} Nc6 {[%emt 0:02:08]} 6. Nf3 {[%emt 0:01:25]} Bg4 {[%emt 0:17:43]} 7. Be2 {[%emt 0:00:08]} Nf6 {[%emt 0:09:06]} 8. Nc3 {[%emt 0:12:33]} Qd7 {[%emt 0:02:03]} 9. h3 {[%emt 0:00:56]} Bxf3 {[%emt 0:03:49]} 10. Bxf3 {[%emt 0:00:11]} Nxd4 {[%emt 0:00:59]} 11. O-O {[%emt 0:01:34]} Nxf3+ {[%emt 0:01:36]} 12. Qxf3 {[%emt 0:00:05]} Qc6 {[%emt 0:01:39]} 13. Qxc6+ {[%emt 0:01:38]} bxc6 {[%emt 0:01:11]} 14. b3 {[%emt 0:03:00]} Nd5 {[%emt 0:02:47]} 15. Bb2 {[%emt 0:02:06]} Nf4 {[%emt 0:04:29]} 16. Rfd1 {[%emt 0:01:37]} Rd8 {[%emt 0:01:58]} 17. Rxd8+ {[%emt 0:00:23]} Kxd8 {[%emt 0:02:07]} 18. Ne4 {[%emt 0:01:09]} f6 {[%emt 0:07:58]} 19. Kh2 {[%emt 0:02:43]} e5 {[%emt 0:01:46]} 20. g3 {[%emt 0:01:37]} Nd5 {[%emt 0:05:17]} 21. Rd1 {[%emt 0:03:41]} Kc7 {[%emt 0:02:04]} 22. a3 {[%emt 0:02:46]} Be7 {[%emt 0:01:14]} 23. b4 {[%emt 0:03:42]} Nb6 {[%emt 0:01:26]} 24. Rc1 {[%emt 0:01:30]} Kb7 {[%emt 0:02:03]} 25. Rc2 {[%emt 0:04:55]} Rd8 {[%emt 0:02:37]} 26. Kg2 {[%emt 0:03:58]} Na4 {[%emt 0:02:23]} 27. Bc1 {[%emt 0:01:22]} Rd4 {[%emt 0:01:42]} 28. Nc3 {[%emt 0:02:36]} Nxc3 {[%emt 0:00:29]} 29. Rxc3 {[%emt 0:00:07]} Bd8 {[%emt 0:03:10]} 30. Be3 {[%emt 0:01:10]} Rd5 {[%emt 0:00:14]} 31. h4 {[%emt 0:03:12]} Bb6 {[%emt 0:00:24]} 32. Bc1 {[%emt 0:00:10]} Bd4 {[%emt 0:00:49]} 33. Rc2 {[%emt 0:01:13]} a5 {[%emt 0:02:08]} 34. Bd2 {[%emt 0:02:41]} Bb6 {[%emt 0:01:32]} 35. Rb2 {[%emt 0:01:23]} axb4 {[%emt 0:01:15]} 36. axb4 {[%emt 0:00:14]} Rb5 {[%emt 0:00:35]} 37. Rc2 {[%emt 0:00:59]} e4 {[%emt 0:04:51]} 38. Rc4 {[%emt 0:01:27]} Rf5 {[%emt 0:00:23]} 39. Bf4 {[%emt 0:07:08]} g5 {[%emt 0:00:16]} 40. hxg5 {[%emt 0:00:58]} fxg5 {[%emt 0:00:15]} 41. Be3 {[%emt 0:00:14]} Bxe3 {[%emt 0:00:18]} 42. fxe3 {[%emt 0:00:04]} Re5 {[%emt 0:00:21]} 43. g4 {[%emt 0:00:12]} Kb6 {[%emt 0:00:23]} 44. Kf2 {[%emt 0:00:16]} h6 {[%emt 0:01:20]} 45. Kg3 {[%emt 0:00:43]} Kc7 {[%emt 0:01:23]} 46. Rd4 {[%emt 0:00:12]} Kb7 {[%emt 0:01:24]} 47. Rc4 {[%emt 0:00:08]} Kb6 {[%emt 0:00:32]} 48. Kf2 {[%emt 0:00:29]} Kc7 {[%emt 0:00:49]} 49. Rd4 {[%emt 0:00:06]} Re6 {[%emt 0:00:20]} 50. Kg3 {[%emt 0:00:17]} Kb6 {[%emt 0:01:42]} 51. Kg2 {[%emt 0:00:10]} Kb5 {[%emt 0:00:25]} 52. Kg3 {[%emt 0:00:12]} c5 {[%emt 0:01:04]} 53. bxc5 {[%emt 0:00:07]} Kxc5 {[%emt 0:00:12]} 54. Kg2 {[%emt 0:00:05]} Kc6 {[%emt 0:00:59]} 55. Kg3 {[%emt 0:00:08]} Re8 {[%emt 0:00:48]} 56. Kg2 {[%emt 0:00:09]} 1/2-1/2

[Event "EYCC Girls U10 2021"]
[Site "Tornelo"]
[Date "2021.10.15"]
[Round "4.9"]
[White "Siskou, Evangelia"]
[Black "Nahapetyan, Ani"]
[Result "1/2-1/2"]
[ECO "B31"]
[WhiteElo "1341"]
[BlackElo "1075"]
[Annotator "NA"]
[PlyCount "92"]
[EventDate "2021.10.15"]
[EventType "swiss"]
[EventCountry "NET"]
[SourceTitle "playchess.com"]
[Source "ChessBase"]
[SourceQuality "1"]
[TimeControl "5400+30"]

1. e4 {[%emt 0:00:30]} c5 {[%emt 0:00:35]} 2. Nf3 {[%emt 0:00:07]} Nc6 {[%emt 0:00:06]} 3. Bb5 {[%emt 0:00:06]} g6 {[%emt 0:00:10]} 4. Bxc6 {[%emt 0:00:19]} dxc6 {[%emt 0:00:10]} 5. O-O {[%emt 0:00:55]} Bg7 {[%emt 0:00:16]} 6. d3 {[%emt 0:00:37]} h6 {[%emt 0:03:13]} 7. Nc3 {[%emt 0:02:06]} Nf6 {[%emt 0:00:46]} 8. Be3 {[%emt 0:02:43]} b6 {[%emt 0:01:11]} 9. h3 {[%emt 0:01:12]} Nd7 {[%emt 0:02:08]} 10. Nh2 {[%emt 0:03:55]} Nf8 {[%emt 0:08:01]} 11. Rb1 {[%emt 0:08:30]} Ne6 {[%emt 0:03:53]} 12. Ne2 {[%emt 0:01:15]} a5 {[%emt 0:06:10]} 13. f4 {[%emt 0:04:00]} Nd4 {[%emt 0:01:48]} 14. c3 {[%emt 0:00:34]} Nxe2+ {[%emt 0:01:07]} 15. Qxe2 {[%emt 0:00:09]} f5 {[%emt 0:01:00]} 16. Qf3 {[%emt 0:01:05]} Qc7 {[%emt 0:03:19]} 17. Rbc1 {[%emt 0:06:27]} fxe4 {[%emt 0:02:57]} 18. dxe4 {[%emt 0:01:34]} Rf8 {[%emt 0:02:14]} 19. Qg3 {[%emt 0:04:49]} g5 {[%emt 0:08:42]} 20. h4 {[%emt 0:01:28]} Be6 {[%emt 0:08:19]} 21. a3 {[%emt 0:09:41]} Bf6 {[%emt 0:02:38]} 22. e5 {[%emt 0:03:03]} gxh4 {[%emt 0:01:24]} 23. Qg6+ {[%emt 0:00:40]} Bf7 {[%emt 0:00:08]} 24. Qg4 {[%emt 0:02:33]} Rg8 {[%emt 0:01:40]} 25. Qh3 {[%emt 0:02:37]} Rg3 {[%emt 0:02:25]} 26. Qf5 {[%emt 0:00:57]} Bd5 {[%emt 0:05:15]} 27. Nf3 {[%emt 0:02:01]} Bh8 {[%emt 0:03:27]} 28. e6 {[%emt 0:03:53]} O-O-O {[%emt 0:01:30]} 29. Bf2 {[%emt 0:03:41]} Rg7 {[%emt 0:01:40]} 30. Nxh4 {[%emt 0:03:23]} Rdg8 {[%emt 0:02:14]} 31. Kh1 {[%emt 0:01:49]} Bxg2+ {[%emt 0:09:35]} 32. Nxg2 {[%emt 0:00:10]} Rxg2 {[%emt 0:00:04]} 33. Rg1 {[%emt 0:04:02]} Rxg1+ {[%emt 0:00:06]} 34. Rxg1 {[%emt 0:00:37]} Rxg1+ {[%emt 0:00:05]} 35. Kxg1 {[%emt 0:00:16]} Qd8 {[%emt 0:00:47]} 36. Qg4 {[%emt 0:01:27]} Qf8 {[%emt 0:00:31]} 37. Qg2 {[%emt 0:00:57]} Kb7 {[%emt 0:00:33]} 38. Qg4 {[%emt 0:00:47]} Qg7 {[%emt 0:00:43]} 39. Qxg7 {[%emt 0:00:09]} Bxg7 {[%emt 0:00:03]} 40. Bh4 {[%emt 0:00:11]} Bf8 {[%emt 0:00:20]} 41. f5 {[%emt 0:00:35]} Kc7 {[%emt 0:00:18]} 42. Bg3+ {[%emt 0:00:07]} Kd8 {[%emt 0:00:05]} 43. Kf2 {[%emt 0:00:44]} b5 {[%emt 0:00:54]} 44. Ke2 {[%emt 0:00:15]} Bg7 {[%emt 0:00:16]} 45. Kd3 {[%emt 0:00:31]} Bf6 {[%emt 0:00:46]} 46. b3 {[%emt 0:00:30]} Bg7 {[%emt 0:00:41]} 1/2-1/2

[Event "EYCC Girls U10 2021"]
[Site "Tornelo"]
[Date "2021.10.15"]
[Round "4.10"]
[White "Kuzmina, Sofya Vl"]
[Black "Bubnova, Uliana"]
[Result "0-1"]
[ECO "A20"]
[WhiteElo "1102"]
[BlackElo "1333"]
[Annotator "NA"]
[PlyCount "108"]
[EventDate "2021.10.15"]
[EventType "swiss"]
[EventCountry "NET"]
[SourceTitle "playchess.com"]
[Source "ChessBase"]
[SourceQuality "1"]
[TimeControl "5400+30"]

1. d4 {[%emt 0:00:30]} d5 {[%emt 0:00:40]} 2. c4 {[%emt 0:00:11]} e6 {[%emt 0:00:22]} 3. g3 {[%emt 0:00:22]} c5 {[%emt 0:00:18]} 4. Bg2 {[%emt 0:00:28]} cxd4 {[%emt 0:02:54]} 5. cxd5 {[%emt 0:02:54]} exd5 {[%emt 0:00:45]} 6. Qxd4 {[%emt 0:03:28]} Be6 {[%emt 0:03:59]} 7. Nf3 {[%emt 0:03:46]} Nc6 {[%emt 0:00:29]} 8. Qd1 {[%emt 0:02:39]} Nf6 {[%emt 0:02:21]} 9. O-O {[%emt 0:03:30]} Be7 {[%emt 0:01:01]} 10. Nc3 {[%emt 0:09:04]} O-O {[%emt 0:06:47]} 11. b3 {[%emt 0:05:26]} Qc7 {[%emt 0:10:49]} 12. Bb2 {[%emt 0:04:13]} Rad8 {[%emt 0:01:19]} 13. Rc1 {[%emt 0:02:04]} Qd7 {[%emt 0:05:48]} 14. Nd4 {[%emt 0:08:01]} Bh3 {[%emt 0:03:40]} 15. Nxc6 {[%emt 0:04:01]} bxc6 {[%emt 0:00:13]} 16. Qd4 {[%emt 0:07:06]} Bxg2 {[%emt 0:01:14]} 17. Kxg2 {[%emt 0:00:06]} c5 {[%emt 0:00:55]} 18. Qa4 {[%emt 0:02:06]} Qb7 {[%emt 0:02:56]} 19. Qb5 {[%emt 0:03:12]} Qa8 {[%emt 0:01:46]} 20. Kg1 {[%emt 0:01:19]} Qc8 {[%emt 0:12:04]} 21. Kg2 {[%emt 0:01:53]} Qe6 {[%emt 0:00:44]} 22. Qd3 {[%emt 0:09:18]} c4 {[%emt 0:03:25]} 23. Qd4 {[%emt 0:01:11]} cxb3 {[%emt 0:00:32]} 24. axb3 {[%emt 0:00:17]} a6 {[%emt 0:02:06]} 25. f4 {[%emt 0:08:50]} Rc8 {[%emt 0:02:35]} 26. f5 {[%emt 0:04:12]} Qd7 {[%emt 0:01:40]} 27. Rcd1 {[%emt 0:03:44]} Bc5 {[%emt 0:00:42]} 28. Qa4 {[%emt 0:01:10]} Qb7 {[%emt 0:00:20]} 29. Kh3 {[%emt 0:01:47]} d4 {[%emt 0:01:17]} 30. Nb1 {[%emt 0:01:04]} Qe4 {[%emt 0:01:33]} 31. Rf2 {[%emt 0:02:31]} Qc2 {[%emt 0:01:14]} 32. Rff1 {[%emt 0:05:21]} Qxe2 {[%emt 0:01:18]} 33. Bxd4 {[%emt 0:00:34]} Qg4+ {[%emt 0:00:19]} 34. Kg2 {[%emt 0:00:03]} Bxd4 {[%emt 0:08:39]} 35. Qxd4 {[%emt 0:00:14]} Rc2+ {[%emt 0:00:36]} 36. Rf2 {[%emt 0:00:20]} Rxf2+ {[%emt 0:00:06]} 37. Kxf2 {[%emt 0:00:06]} Qxf5+ {[%emt 0:00:04]} 38. Kg2 {[%emt 0:01:18]} Qc2+ {[%emt 0:00:07]} 39. Qd2 {[%emt 0:00:37]} Qxb3 {[%emt 0:00:05]} 40. Qd3 {[%emt 0:00:09]} Qb6 {[%emt 0:00:38]} 41. Nc3 {[%emt 0:00:11]} Ng4 {[%emt 0:00:33]} 42. Rd2 {[%emt 0:00:22]} Ne3+ {[%emt 0:00:41]} 43. Kf3 {[%emt 0:00:12]} Re8 {[%emt 0:00:41]} 44. Ne4 {[%emt 0:01:03]} Nf5 {[%emt 0:00:55]} 45. g4 {[%emt 0:01:20]} Nh4+ {[%emt 0:00:46]} 46. Kg3 {[%emt 0:00:14]} Ng6 {[%emt 0:00:17]} 47. Qf3 {[%emt 0:00:43]} Qg1+ {[%emt 0:01:00]} 48. Kh3 {[%emt 0:00:24]} Ne5 {[%emt 0:00:51]} 49. Qf4 {[%emt 0:00:24]} Ng6 {[%emt 0:00:53]} 50. Qf3 {[%emt 0:00:32]} a5 {[%emt 0:00:33]} 51. Rf2 {[%emt 0:00:49]} Rf8 {[%emt 0:01:55]} 52. Ng5 {[%emt 0:00:36]} Ne5 {[%emt 0:00:31]} 53. Qf5 {[%emt 0:00:15]} g6 {[%emt 0:00:16]} 54. Qf4 {[%emt 0:00:09]} Nd3 {[%emt 0:00:24]} 0-1

[Event "EYCC Girls U10 2021"]
[Site "Tornelo"]
[Date "2021.10.15"]
[Round "5.1"]
[White "Aydogan, Arya"]
[Black "Preobrazhenskaya, Diana"]
[Result "1/2-1/2"]
[ECO "B52"]
[WhiteElo "1250"]
[BlackElo "1764"]
[Annotator "NA RC"]
[PlyCount "85"]
[EventDate "2021.10.15"]
[EventType "swiss"]
[EventCountry "NET"]
[SourceTitle "playchess.com"]
[Source "ChessBase"]
[SourceQuality "1"]
[TimeControl "5400+30"]

1. e4 {[%emt 0:00:30]} c5 {[%emt 0:00:35]} 2. Nf3 {[%emt 0:00:04]} d6 {[%emt 0:00:06]} 3. Bb5+ {[%emt 0:00:04]} Bd7 {[%emt 0:00:10]} 4. Bxd7+ {[%emt 0:00:07]} Qxd7 {[%emt 0:00:12]} 5. O-O {[%emt 0:00:04]} Nc6 {[%emt 0:00:56]} 6. c3 {[%emt 0:04:23]} Nf6 {[%emt 0:02:14]} 7. Re1 {[%emt 0:01:18]} g6 {[%emt 0:01:41]} 8. d4 {[%emt 0:01:13]} cxd4 {[%emt 0:06:30]} 9. cxd4 {[%emt 0:00:07]} Bg7 {[%emt 0:00:29]} 10. d5 {[%emt 0:04:22]} Na5 {[%emt 0:02:51]} 11. Bd2 {[%emt 0:11:07]} Nc4 {[%emt 0:01:24]} 12. Bc3 {[%emt 0:00:33]} O-O {[%emt 0:01:56]} 13. b3 {[%emt 0:03:17]} Nb6 {[%emt 0:01:05]} 14. Nbd2 {[%emt 0:01:01]} Rac8 {[%emt 0:03:18]} 15. Rc1 {[%emt 0:07:41]} Rxc3 {[%emt 0:03:19]} 16. Rxc3 {[%emt 0:00:04]} Nfxd5 {[%emt 0:00:25]} 17. Rc1 {[%emt 0:06:51]} Nf4 {[%emt 0:04:16]} 18. Nf1 {[%emt 0:09:31]} Qg4 {[%emt 0:13:07]} 19. Ng3 {[%emt 0:05:30]} h5 {[%emt 0:03:41]} 20. h3 {[%emt 0:06:59]} Qd7 {[%emt 0:01:31]} 21. Ne2 {[%emt 0:02:19]} Nxh3+ {[%emt 0:02:07]} 22. gxh3 {[%emt 0:02:24]} Qxh3 {[%emt 0:00:04]} 23. Nf4 {[%emt 0:03:53]} Qg4+ {[%emt 0:00:06]} 24. Ng2 {[%emt 0:00:18]} Nd7 {[%emt 0:01:10]} 25. Nh2 {[%emt 0:02:17]} Qg5 {[%emt 0:00:16]} 26. f4 {[%emt 0:01:43]} Qa5 {[%emt 0:00:34]} 27. Re2 {[%emt 0:01:31]} Nc5 {[%emt 0:00:46]} 28. Kh1 {[%emt 0:01:56]} Qb5 {[%emt 0:01:32]} 29. e5 {[%emt 0:03:57]} dxe5 {[%emt 0:00:27]} 30. fxe5 {[%emt 0:00:48]} Nd3 {[%emt 0:00:20]} 31. Rc3 {[%emt 0:01:55]} Rd8 {[%emt 0:02:07]} 32. Qc2 {[%emt 0:02:24]} Kh7 {[%emt 0:01:21]} 33. Rd2 {[%emt 0:01:33]} Nb4 {[%emt 0:00:52]} 34. Qd1 {[%emt 0:01:23]} Nxa2 {[%emt 0:02:22]} 35. Rcc2 {[%emt 0:01:12]} Rxd2 {[%emt 0:00:29]} 36. Rxd2 {[%emt 0:00:27]} Nc3 {[%emt 0:00:15]} 37. Qf3 {[%emt 0:01:17]} Qxe5 {[%emt 0:01:58]} 38. Qxf7 {[%emt 0:00:37]} Ne4 {[%emt 0:00:48]} 39. Rd5 {[%emt 0:00:55]} Ng3+ {[%emt 0:12:59]} 40. Kg1 {[%emt 0:00:17]} Ne2+ {[%emt 0:00:27]} 41. Kh1 {[%emt 0:05:32]} Ng3+ {[%emt 0:01:15]} 42. Kg1 {[%emt 0:00:04]} Ne2+ {[%emt 0:01:55]} 43. Kh1 {[%emt 0:00:53]} 1/2-1/2